Cogmind - Beta 14 --- EXPLORER MODE // 2024.10.06 @ 18:03:28 Player: mrjoebobfred Result: Self-destructed Performance ------------- Evolutions (4) 2000 Regions Visited (16) 3200 Robots Destroyed (326) 1630 Value Destroyed (16659) 16659 Prototype IDs (44) 880 Alien Tech Used (0) 0 Bonus (4320) 4320 TOTAL SCORE: 28689 Bonus ------- High Alert Combat Kills 2038 Follower Combat Kills 1321 Entered Garrisons 800 Aligned with FarCom 300 Friendly Fire -139 Cogmind --------- Core Integrity 687/850 Matter 290/300 Energy 287/310 System Corruption 2% Temperature Cool (0) Movement Treading (160) Location -6/Waste Parts ------- > --- POWER (2) -------- Fission Core > --- PROPULSION (4) --- Heavy Treads Improved Heavy Treads > --- UTILITY (8) ------ Advanced Cooling System Enhanced Optical Array Advanced Transmission Jammer Hacking Suite Improved System Shield > --- WEAPON (2) ------- (None) > --- INVENTORY (5) ---- Improved Heavy Treads Improved Heavy Treads Chainsword Peak State ------------ > --- POWER ------------ Light Antimatter Reactor Light Quantum Reactor > --- PROPULSION ------- Improved Heavy Treads Improved Heavy Treads > --- UTILITY ---------- Advanced Heat Sink High-capacity Storage Unit Enhanced Optical Array Advanced Transmission Jammer Medium Reactive Plating Hardlight Generator Hacking Suite Improved Component Analysis Suite > --- WEAPON ----------- Heavy Gauss Cannon Heavy Gauss Cannon > --- INVENTORY -------- Light Angular Momentum Engine Improved Heavy Treads Improved Heavy Treads Advanced Cooling System Structural Scanner Active Sensor Spoofer Improved Force Field Hacking Suite Hacking Suite Long-range Tractor Beam Long-range Tractor Beam Heavy Phase Cannon Gauss Rifle Coil Gun Micro-nuke Launcher Improved Plasma Cutter Chainsword Tiamat Bomb Trap [Rating: 102] Favorites ----------- Power Improved Deuterium Engine Engine Improved Deuterium Engine Power Core Nuclear Core Reactor Light Quantum Reactor Propulsion Improved Heavy Treads Treads Improved Heavy Treads Utility Visual Processing Unit Device Structural Scanner Storage High-capacity Storage Unit Processor Visual Processing Unit Hackware Hacking Suite Protection Medium Armor Plating Weapon Improved Assault Rifle Energy Gun Medium Laser Energy Cannon Light EM Pulse Cannon Ballistic Gun Improved Assault Rifle Ballistic Cannon Heavy Gauss Cannon Launcher Micro-nuke Launcher Special Weapon Plasma Cutter Slashing Weapon Katana Build | -11 -10 -10 -9 -9 -9 -8 -8 -8 -8 -8 -8 -8 -7 -7 -6 -6 ------- Run | Yrd Mat Min Mat Min Exi Min Mat Gar Mat Gar Mat Gar Fac Gar Fac Was Slots Evolved 9 | . 1 . 2 . . . 2 . . . . . 2 . 2 . Power 1 | . . . . . . . . . . . . . . . 1 . Propulsion 2 | . . . . . . . . . . . . . 2 . . . Utility 6 | . 1 . 2 . . . 2 . . . . . . . 1 . Weapon . | . . . . . . . . . . . . . . . . . Parts Attached 187 | 7 4 1 21 2 3 1 13 18 7 8 6 7 32 15 37 5 Power 18 | 1 . . 2 . . 1 1 . 1 . 3 . 2 2 5 . Engine 11 | 1 . . 2 . . 1 1 . 1 . 1 . 2 . 2 . Core 5 | . . . . . . . . . . . 2 . . 1 2 . Reactor 2 | . . . . . . . . . . . . . . 1 1 . Propulsion 20 | 2 . . 4 . 1 . 3 2 . . 1 . 3 2 1 1 Treads 20 | 2 . . 4 . 1 . 3 2 . . 1 . 3 2 1 1 Leg . | . . . . . . . . . . . . . . . . . Wheel . | . . . . . . . . . . . . . . . . . Hover . | . . . . . . . . . . . . . . . . . Flight . | . . . . . . . . . . . . . . . . . Utility 90 | 2 2 1 6 2 1 . 6 7 6 3 1 2 18 7 25 1 Device 64 | . 1 . 1 2 . . 3 4 6 1 1 1 17 7 19 1 Storage 5 | 1 1 . . . . . . . . 1 . . . . 2 . Processor 6 | 1 . . 2 . . . . 1 . . . . 1 . 1 . Hackware 4 | . . . . . . . . 1 . . . 1 . . 2 . Protection 11 | . . 1 3 . 1 . 3 1 . 1 . . . . 1 . Artifact . | . . . . . . . . . . . . . . . . . Weapon 59 | 2 2 . 9 . 1 . 3 9 . 5 1 5 9 4 6 3 Energy Gun 1 | 1 . . . . . . . . . . . . . . . . Energy Cannon 7 | . 2 . . . . . . . . . . 2 1 . . 2 Ballistic Gun 35 | 1 . . 9 . 1 . 3 5 . 3 1 2 7 . 3 . Ballistic Cannon 5 | . . . . . . . . . . . . . . 3 2 . Launcher 4 | . . . . . . . . . . . . 1 1 . 1 1 Special Weapon 3 | . . . . . . . . 2 . 1 . . . . . . Impact Weapon . | . . . . . . . . . . . . . . . . . Slashing Weapon 4 | . . . . . . . . 2 . 1 . . . 1 . . Piercing Weapon . | . . . . . . . . . . . . . . . . . Special Melee Weapon . | . . . . . . . . . . . . . . . . . Unidentified Prototypes 3 | . . . . . . . 1 1 . . . . 1 . . . Corrupted Parts 1 | . . . . . . . . . . . . . . 1 . . System Corruption 2 | . . . . . . . . . . . . . . 2 . . Parts Lost 19 | . . . . . . . . 4 1 1 . 2 2 2 4 3 Power 5 | . . . . . . . . . 1 . . . . 1 2 1 Propulsion 2 | . . . . . . . . 2 . . . . . . . . Utility 7 | . . . . . . . . 1 . 1 . 1 . 1 2 1 Weapon 5 | . . . . . . . . 1 . . . 1 2 . . 1 Highest Loss Streak 3 | . . . . . . . . 2 1 1 . 1 2 2 2 3 To Critical Strikes . | . . . . . . . . . . . . . . . . . Average Slot Usage (%) 90 | . 98 100 99 100 94 90 94 96 90 90 90 89 82 84 85 83 Engine 6 | . 12 12 9 10 10 10 8 8 7 8 1 . 6 . 1 5 Core 1 | . . . . . . . . . . . 6 8 . 1 1 6 Reactor 1 | . . . . . . . . . . . . . . 4 8 . Treads 14 | . 25 25 20 20 20 20 15 14 8 8 7 8 11 14 11 12 Device 16 | . 10 12 11 10 10 10 16 19 24 16 16 16 16 19 25 23 Storage 8 | . 12 12 10 10 10 10 8 8 8 8 8 8 7 7 6 5 Processor 18 | . 12 6 16 20 20 20 16 17 25 25 25 25 18 21 6 6 Hackware 2 | . . . . . . . . 5 . . . 4 7 1 6 12 Protection 5 | . . 5 11 10 10 10 14 6 . 7 8 2 . . 3 . Energy Cannon 2 | . 19 25 . . . . . . . . . . 2 1 . 4 Ballistic Gun 11 | . 2 . 19 20 14 10 11 14 16 15 16 14 11 1 6 1 Ballistic Cannon 1 | . . . . . . . . . . . . . . 11 5 . Peak Build Rating 102 | 7 10 11 23 26 33 37 44 57 57 50 50 61 72 86 102 96 Average Rating 49 | 5 9 10 18 23 28 35 38 38 49 49 48 51 66 78 95 91 On Entrance 40 | . 7 10 11 23 23 33 37 35 55 48 48 50 61 70 83 92 Naked Turns . | . . . . . . . . . . . . . . . . . Heaviest Build 120 | 18 34 37 44 41 45 47 57 47 43 65 67 67 75 86 120 93 Greatest Support 150 | 40 40 40 42 42 42 42 45 75 75 75 75 75 150 150 150 150 Greatest Overweight (x) 2 | . . . 1 . 1 1 2 1 . . . . . . . . Average Overweight (x) . | . . . . . . 1 1 . . . . . . . . . Largest Inventory Capacity 25 | 10 15 15 15 15 15 15 15 15 15 20 20 20 20 20 25 20 Average Capacity 17 | 8 12 15 15 15 15 15 15 15 15 17 20 20 20 20 20 19 Most Carried 21 | 1 7 11 15 15 15 15 15 15 15 15 16 20 20 20 21 20 Average Carried 14 | . 4 7 13 14 14 14 12 12 14 14 15 15 18 18 15 16 Final Capacity 20 | 10 15 15 15 15 15 15 15 15 15 20 20 20 20 20 20 5 Final Carried 19 | 1 7 11 15 15 15 15 11 15 15 14 16 19 17 15 15 5 Class Distribution -------------------- 63% | Hacker-Mutant 28% | Hacker-Skirmisher 6% | Scavenger-Mutant Dominant Class ---------------- Hacker-Mutant | -10/Materials Hacker-Mutant | -10/Mines Hacker-Mutant | -9/Materials Hacker-Mutant | -9/Mines Hacker-Mutant | -9/Exiles Hacker-Skirmisher | -8/Mines Hacker-Skirmisher | -8/Materials Hacker-Mutant | -8/Garrison Hacker-Skirmisher | -8/Materials Hacker-Mutant | -8/Garrison Hacker-Skirmisher | -8/Materials Hacker-Mutant | -8/Garrison Hacker-Skirmisher | -7/Factory Hacker-Mutant | -7/Garrison Hacker-Mutant | -6/Factory Hacker-Mutant | -6/Waste Resources | -11 -10 -10 -9 -9 -9 -8 -8 -8 -8 -8 -8 -8 -7 -7 -6 -6 ----------- Run | Yrd Mat Min Mat Min Exi Min Mat Gar Mat Gar Mat Gar Fac Gar Fac Was Matter Collected 8194 | 230 62 18 801 32 . 40 236 822 212 653 498 534 1507 784 1517 248 Remotely 1513 | . . . . . . . . . . . . . . 580 685 248 Salvage Created 14584 | . 256 98 1903 37 . 169 1270 1221 548 878 656 999 2834 651 2496 568 Parts 761 | . 16 2 124 1 . 10 69 69 30 31 33 56 156 43 116 5 Haulers Intercepted 6 | . . . 4 . . . 1 1 . . . . . . . . Recyclers Shooed 7 | . . . . . . . 1 . . . 1 . 1 . 4 . Parts Field Recycled . | . . . . . . . . . . . . . . . . . Retrieved Matter . | . . . . . . . . . . . . . . . . . Parts Self-Destructed . | . . . . . . . . . . . . . . . . . Prevented . | . . . . . . . . . . . . . . . . . Kills | -11 -10 -10 -9 -9 -9 -8 -8 -8 -8 -8 -8 -8 -7 -7 -6 -6 ------- Run | Yrd Mat Min Mat Min Exi Min Mat Gar Mat Gar Mat Gar Fac Gar Fac Was Combat Hostiles Destroyed 263 | . 8 2 32 1 . 5 24 22 8 17 11 21 43 21 45 3 Melee 4 | . . . . . . . . 1 . . . . . 2 1 . Guns 193 | . . . 29 1 . 5 24 21 8 17 11 16 36 1 24 . Cannons 47 | . 6 1 3 . . . . . . . . 2 4 18 12 1 AOE 13 | . 1 . . . . . . . . . . 3 . . 7 2 Classes Destroyed 18 | . 3 . 7 . . . 1 2 2 . . 1 . . 1 1 Worker 12 | . . . 2 . . . . . 1 . 1 . 4 . 4 . Builder 6 | . . . 1 . . . 1 . . . 2 . 1 . 1 . Hauler 6 | . . . 4 . . . 1 1 . . . . . . . . Recycler 7 | . . . 1 . . . . . . . 1 . 2 . 3 . Mechanic 3 | . . . . . . . 1 . . . . . 1 . 1 . Operator 7 | . . . 2 . . . . . 1 . 2 . 1 . 1 . Watcher 22 | . 2 . 5 . . . 3 1 2 . 1 . 5 . 3 . Swarmer 47 | . 6 . 5 . . 3 7 3 . 3 3 4 4 7 2 . Saboteur 1 | . . . . . . . . . . . . . . . 1 . Grunt 120 | . 2 2 13 1 . 2 9 11 5 12 6 10 16 8 23 . Brawler 8 | . . . . . . . . . 1 . . . 3 . 4 . Duelist 11 | . . . 4 . . . 1 . . 1 . 1 2 . 2 . Protector 2 | . . . . . . . . 1 . . . . . . 1 . Sentry 39 | . . . 10 . . . 7 4 . . 2 5 7 2 2 . Hunter 15 | . . . . . . . . . 2 1 . . 4 3 5 . Programmer 16 | . . . . . . . . 3 . . . . 7 1 5 . Behemoth 1 | . . . . . . . . . . . . 1 . . . . Compactor 3 | . . . . . . . . . . . . . . . . 3 Best Kill Streak 14 | . 2 2 5 1 . 3 7 3 4 4 3 9 6 6 14 2 Combat Bots Only 11 | . 2 2 5 1 . 3 5 3 3 4 2 9 6 6 11 2 Max Kills in Single Turn 6 | . 1 1 2 1 . 1 1 1 1 1 1 2 2 1 6 1 Gunslinging 1 | . . . . . . . . . . . . . . . 1 . Exploded 5 | . 1 . . . . . . . . . . 2 . . 5 1 Melee 1 | . . . . . . . . 1 . . . . . 1 1 . Uniques/NPCs Destroyed . | . . . . . . . . . . . . . . . . . Combat | -11 -10 -10 -9 -9 -9 -8 -8 -8 -8 -8 -8 -8 -7 -7 -6 -6 -------- Run | Yrd Mat Min Mat Min Exi Min Mat Gar Mat Gar Mat Gar Fac Gar Fac Was Hostile Shots Fired 1551 | . 33 6 162 . . 11 85 147 45 80 35 128 320 217 278 4 Missed 496 | . 12 2 44 . . 5 27 68 13 31 15 32 114 63 70 . Damage Taken 8004 | . 126 38 944 . . 55 480 936 254 274 169 842 1430 797 1443 216 Core 923 | . 25 . 116 . . . 66 106 49 55 21 129 112 81 128 35 Absorbed by Shields 2406 | . . . . . . . . . 81 182 24 361 548 412 798 . Reduced by Siege Mode 388 | . . . . . . . . . . . . 80 99 42 167 . Ignored by Resistances 6483 | . 88 23 594 . . 33 302 563 203 280 117 718 1205 760 1474 123 Regen/Repaired (Parts) 1068 | . . . 190 . . . . . 38 . 474 . 366 . . . Core Remaining (%) 71 | 100 . 90 . . . 71 . . . . . 22 . 72 . . Volleys Fired 923 | . 21 5 113 2 . . 31 97 43 72 58 100 146 84 127 24 Largest 2 | . 2 2 2 2 . . 2 2 2 2 2 2 2 2 2 2 Hottest 131 | . 112 112 112 46 . . 46 46 46 51 51 126 131 122 122 90 Shots Fired 1728 | . 34 10 215 4 . 15 121 194 86 125 108 166 281 103 241 25 Gun 1438 | . . . 201 4 . 15 121 194 86 125 108 153 253 12 162 4 Cannon 273 | . 34 10 14 . . . . . . . . 11 28 91 77 8 Launcher 17 | . . . . . . . . . . . . 2 . . 2 13 Special . | . . . . . . . . . . . . . . . . . Kinetic 1585 | . . . 201 4 . 15 121 194 86 125 108 153 253 82 239 4 Thermal 68 | . . . . . . . . . . . . 11 28 21 . 8 Explosive 17 | . . . . . . . . . . . . 2 . . 2 13 Electromagnetic 58 | . 34 10 14 . . . . . . . . . . . . . Robot Hit Streak 42 | . 10 20 41 9 . 24 39 31 18 37 20 36 42 33 29 20 Robot Miss Streak 4 | . 1 . 3 . . . 1 1 2 1 2 1 4 1 2 1 Penetration Max 1 | . . . . . . . . . . 1 1 . 1 . 1 . Secondary Targets 26 | . . . 3 . . . 3 2 2 3 . 3 3 . 7 . Max Gunslinging Chain 1 | . . . 1 . . . 1 1 1 1 . 1 1 . 1 . Autonomous 75 | . . . . . . 15 60 . . . . . . . . . Shots Hit Robots 1369 | . 25 10 179 3 . 15 106 149 72 98 82 120 232 56 209 13 Core Hits 570 | . 9 1 71 3 . 7 49 55 30 36 34 48 95 25 101 6 Critical Kills 17 | . . . 1 . . . . 2 . 1 . 1 8 . 4 . Critical Parts Destroyed 18 | . . . 1 . . . 2 1 . . . . 12 . 2 . Critical Strikes 61 | . . . 2 . . . 2 3 . 1 . 1 22 9 20 1 Meltdown 3 | . . . . . . . . . . . . . 3 . . . Destroy 35 | . . . 2 . . . 2 3 . 1 . 1 19 . 6 1 Blast 23 | . . . . . . . . . . . . . . 9 14 . Melee Attacks 7 | . . . . . . . . 3 . 2 . . . 2 . . Impact . | . . . . . . . . . . . . . . . . . Slashing 7 | . . . . . . . . 3 . 2 . . . 2 . . Piercing . | . . . . . . . . . . . . . . . . . Sneak Attacks . | . . . . . . . . . . . . . . . . . Combat Hostiles . | . . . . . . . . . . . . . . . . . Follow-up Attacks . | . . . . . . . . . . . . . . . . . Damage Inflicted 34416 | . 686 232 2837 42 . 358 2622 2358 1075 1662 1483 2598 5982 1850 7433 3198 Guns 22515 | . . . 2497 40 . 358 2578 2328 1058 1561 1472 1909 4970 198 3464 82 Cannons 6636 | . 618 232 261 . . . . . . . . 398 927 1573 2523 104 Explosions 4812 | . 68 . 53 . . . 44 . . . . 291 . . 1344 3012 Melee 210 | . . . . . . . . 30 . 101 . . . 79 . . Ramming 243 | . . . 26 2 . . . . 17 . 11 . 85 . 102 . Kinetic 26355 | . . . 2497 40 . 358 2578 2328 1058 1561 1472 1909 4970 1515 5987 82 Thermal 1806 | . 68 . 53 . . . . . . . . 398 927 256 . 104 Explosive 4691 | . . . . . . . 44 . . . . 291 . . 1344 3012 Electromagnetic 1111 | . 618 232 261 . . . . . . . . . . . . . Impact . | . . . . . . . . . . . . . . . . . Slashing 210 | . . . . . . . . 30 . 101 . . . 79 . . Piercing . | . . . . . . . . . . . . . . . . . Highest Corruption 4 | . . . . . . . . 2 2 2 2 2 2 4 2 2 Average Corruption 2 | . . . . . . . . 1 2 2 2 2 1 3 1 2 Corruption Purged 2 | . . . . . . . . . . . . . . . 2 . Corruption Blocked . | . . . . . . . . . . . . . . . . . Effects 130 | . . . . . . . . 3 9 19 15 22 10 42 9 1 Message Errors 24 | . . . . . . . . 1 1 7 2 2 1 8 2 . Matter Fused 39 | . . . . . . . . 1 6 6 3 8 4 10 1 . Heat Flow Errors 16 | . . . . . . . . . . 1 3 3 1 6 2 . Energy Discharges 17 | . . . . . . . . 1 . 1 1 4 1 6 3 . Parts Rejected 1 | . . . . . . . . . . . 1 . . . . . Parts Fused 3 | . . . . . . . . . . 1 . . . 2 . . Data Loss (minor) 18 | . . . . . . . . . 2 2 1 2 2 8 1 . Data Loss (major) 4 | . . . . . . . . . . . 2 1 1 . . . Misfires 2 | . . . . . . . . . . 1 1 . . . . . Alerts 3 | . . . . . . . . . . . 1 1 . 1 . . Weapon Failures 3 | . . . . . . . . . . . . 1 . 1 . 1 Overload Shots . | . . . . . . . . . . . . . . . . . Overflow Damage 394 | . 48 . . . . . . . . 23 . . 53 71 199 . Projectiles 255 | . 15 . . . . . . . . . . . 53 71 116 . Explosions 116 | . 33 . . . . . . . . . . . . . 83 . Melee 23 | . . . . . . . . . . 23 . . . . . . Knockbacks 22 | . . . . . . . . . . . . . 1 5 16 . Impact 2 | . . . . . . . . . . . . . 1 . 1 . Kinetic 18 | . . . . . . . . . . . . . . 4 14 . Secondary 2 | . . . . . . . . . . . . . . 1 1 . Self-Inflicted Damage 82 | . . . . . . . . . . . . 1 . . . 81 Shots 4 | . . . . . . . . . . . . 1 . . . 3 Rammed 23 | . . . 5 1 . . . . 2 . 2 . 6 . 7 . Targets Rammed 25 | . . . 6 1 . . . . 2 . 2 . 7 . 7 . Kicked . | . . . . . . . . . . . . . . . . . Crushed 2 | . . . 1 . . . . . . . . . 1 . . . Highest Temperature 491 | . 209 228 240 . . . 156 15 6 132 236 491 80 184 314 . Average Temperature 52 | . 87 127 43 . . . 58 6 2 17 29 58 21 69 73 . Received Heat Transfer 3535 | . 72 33 546 . . 36 360 456 69 242 123 511 466 154 467 . Effects 1 | . . . . . . . . . . . . 1 . . . . Shutdowns 1 | . . . . . . . . . . . . 1 . . . . Siege Activations 32 | . . . . . . . . . . . . 8 5 5 13 1 Total Turns 496 | . . . . . . . . . . . . 99 96 70 214 17 Longest Duration 61 | . . . . . . . . . . . . 32 46 30 61 17 Robots Corrupted 2 | . 1 1 . . . . . . . . . . . . . . Combat Hostiles 2 | . 1 1 . . . . . . . . . . . . . . Parts Fried 7 | . 2 3 2 . . . . . . . . . . . . . Impact Corruptions . | . . . . . . . . . . . . . . . . . Robots Melted 3 | . . . . . . . . . . . . . 3 . . . Combat Hostiles 3 | . . . . . . . . . . . . . 3 . . . Parts Melted 9 | . . . . . . . . . . . . 1 7 . 1 . Heat Transferred 2318 | . 100 . 50 . . . . . . . . 524 1274 259 . 111 Parts Sabotaged 3 | . . . . . . . . . . . . . . . 3 . Parts Stolen . | . . . . . . . . . . . . . . . . . Parts Stripped . | . . . . . . . . . . . . . . . . . Power Chain Reactions 2 | . 1 . 1 . . . . . . . . . . . . . Alert | -11 -10 -10 -9 -9 -9 -8 -8 -8 -8 -8 -8 -8 -7 -7 -6 -6 ------- Run | Yrd Mat Min Mat Min Exi Min Mat Gar Mat Gar Mat Gar Fac Gar Fac Was Peak Influence 1302 | . 148 79 391 32 . 71 453 1228 530 1008 779 1259 640 1302 949 205 Initial 507 | . . 29 . 8 . . . 49 438 114 360 244 490 49 507 162 Average 388 | . 66 33 113 14 . 28 219 606 379 562 536 756 183 801 752 182 Maximum Alert Level 4 | . . . 1 . . . 2 4 2 3 3 4 2 4 3 1 Low Security (%) 40 | 100 100 100 76 100 . 100 45 9 14 1 . . 62 5 . 96 Level 1 17 | . . . 23 . . . 44 32 18 13 6 25 22 19 . 3 Level 2 20 | . . . . . . . 10 14 66 67 83 15 14 17 26 . Level 3 16 | . . . . . . . . 41 . 16 10 37 . 20 73 . Level 4 4 | . . . . . . . . 2 . . . 21 . 37 . . Level 5 . | . . . . . . . . . . . . . . . . . High Security . | . . . . . . . . . . . . . . . . . Max Security . | . . . . . . . . . . . . . . . . . Squads Dispatched 54 | . . . 5 1 . . 6 . 5 . 5 . 21 . 11 . Investigation 18 | . . . 3 1 . . 2 . 2 . 1 . 7 . 2 . Extermination 8 | . . . . . . . . . . . . . 5 . 3 . Reinforcement 11 | . . . 2 . . . 2 . 1 . 2 . 2 . 2 . Assault 4 | . . . . . . . . . . . . . . . 4 . Garrison 13 | . . . . . . . 2 . 2 . 2 . 7 . . . Intercept . | . . . . . . . . . . . . . . . . . Searches Triggered . | . . . . . . . . . . . . . . . . . Construction Impeded 1 | . . . . . . . 1 . . . . . . . . . Haulers Reinforced 3 | . . . . . . . . . . . . . 1 . 2 . Active Scanning Responses . | . . . . . . . . . . . . . . . . . Cargo Convoy Interrupts 1 | . . . . . . . . . . . . . . . 1 . Stealth | -11 -10 -10 -9 -9 -9 -8 -8 -8 -8 -8 -8 -8 -7 -7 -6 -6 --------- Run | Yrd Mat Min Mat Min Exi Min Mat Gar Mat Gar Mat Gar Fac Gar Fac Was Distress Signals 16 | . . . 4 . . . 5 . 3 . 1 . 2 . 1 . Communications Jammed 16 | . . . . . . . . . . . . . . . 16 . Distress Signals 16 | . . . . . . . . . . . . . . . 16 . Times Spotted 373 | . 10 2 52 1 . 5 29 33 17 24 21 25 57 30 63 4 Peak Tracking Total 9 | . 2 2 5 1 . 2 6 6 5 4 3 6 6 4 9 3 Tactical Retreats 7 | . . . . . . . 1 2 . . 1 1 1 1 . . Traps | -11 -10 -10 -9 -9 -9 -8 -8 -8 -8 -8 -8 -8 -7 -7 -6 -6 ------- Run | Yrd Mat Min Mat Min Exi Min Mat Gar Mat Gar Mat Gar Fac Gar Fac Was Traps Triggered 16 | . . . . . . . 1 6 . . . 2 1 2 4 . Indirectly . | . . . . . . . . . . . . . . . . . Trap Hack Attempts . | . . . . . . . . . . . . . . . . . Triggered . | . . . . . . . . . . . . . . . . . Disarmed . | . . . . . . . . . . . . . . . . . Reprogrammed 14 | . 10 . . . . . . . 4 . . . . . . . Reused 4 | . . . . . . . . . 1 . . . . 1 2 . Traps Extracted . | . . . . . . . . . . . . . . . . . Installed 3 | . . . . . . . . . . . . . . 1 2 . Triggered 5 | . . . . . . . . . 1 . . . . 1 3 . Most Traps Carried 4 | . . 4 4 . . . . . . . . . . 3 2 . Machines | -11 -10 -10 -9 -9 -9 -8 -8 -8 -8 -8 -8 -8 -7 -7 -6 -6 ---------- Run | Yrd Mat Min Mat Min Exi Min Mat Gar Mat Gar Mat Gar Fac Gar Fac Was Machines Disabled 53 | . . . 1 . . . 1 8 . 6 3 8 6 16 4 . Max in Single Turn 3 | . . . 1 . . . 1 1 . 1 1 1 1 1 3 . Garrison Relay 20 | . . . . . . . . 5 . 4 . 6 . 5 . . Phase Generator 2 | . . . . . . . . 1 . 1 . . . . . . Machines Repaired . | . . . . . . . . . . . . . . . . . Machines Dismantled 3 | . . . . . . . . 2 . 1 . . . . . . Machines Sabotaged . | . . . . . . . . . . . . . . . . . Overloaded Fab Kills . | . . . . . . . . . . . . . . . . . Hacking | -11 -10 -10 -9 -9 -9 -8 -8 -8 -8 -8 -8 -8 -7 -7 -6 -6 --------- Run | Yrd Mat Min Mat Min Exi Min Mat Gar Mat Gar Mat Gar Fac Gar Fac Was Machines Accessed 92 | . 9 . 15 2 2 . 5 2 8 2 3 1 29 2 12 . Terminals 56 | . 7 . 10 1 . . 3 2 5 2 1 1 13 2 9 . Fabricators 6 | . . . . . . . . . . . . . 5 . 1 . Repair Stations 5 | . . . 1 . . . . . 1 . 1 . 2 . . . Recycling Units 9 | . 2 . 2 . . . . . 1 . . . 3 . 1 . Scanalyzers 8 | . . . 2 . . . 1 . . . . . 4 . 1 . Garrison Access 5 | . . . . . . . 1 . 1 . 1 . 2 . . . Total Hacks 303 | . 36 . 57 6 2 . 23 5 26 3 10 2 86 4 43 . Successful 238 | . 27 . 49 4 2 . 17 2 18 3 8 2 69 2 35 . Failed 65 | . 9 . 8 2 . . 6 3 8 . 2 . 17 2 8 . Catastrophic 2 | . 1 . . . . . . . . . . . . 1 . . Database Lockouts . | . . . . . . . . . . . . . . . . . Manual 164 | . 23 . 27 5 1 . 15 2 14 2 6 2 39 3 25 . Terminals 190 | . 33 . 32 5 . . 15 5 16 3 4 2 40 4 31 . Fabricators 16 | . . . . . . . . . . . . . 12 . 4 . Repair Stations 16 | . . . 6 . . . . . 3 . 3 . 4 . . . Recycling Units 17 | . 3 . 4 . . . . . 3 . . . 5 . 2 . Scanalyzers 45 | . . . 15 . . . 5 . . . . . 19 . 6 . Garrison Access 16 | . . . . . . . 3 . 4 . 3 . 6 . . . Terminal Hacks 74 | . 17 . 11 4 2 . 3 1 5 2 1 1 10 1 16 . Record 1 | . . . . . 1 . . . . . . . . . . . Part Schematic 4 | . . . . . . . . . . . . . 2 . 2 . Robot Schematic 2 | . . . . . . . . . . . . . 2 . . . Robot Analysis 12 | . 3 . 2 . . . 1 . . . . . . . 6 . Prototype ID Bank 14 | . 5 . 4 3 . . . . . . . . 1 . 1 . Open Door 3 | . . . . 1 . . . . . 1 . . . . 1 . Branch Access Points 2 | . . . . . . . . . . . . . 1 . 1 . Emergency Access Points 1 | . . . . . . . . . . . . . . 1 . . Machine Index 1 | . . . . . . . . . . . . . 1 . . . Terminal Index 1 | . . . . . . . . . . . . . 1 . . . Alert Level 1 | . . . 1 . . . . . . . . . . . . . Unreport Threat 2 | . . . . . . . 1 . . . . . 1 . . . Locate Traps 12 | . 3 . 2 . . . 1 . 3 . 1 . 1 . 1 . Reprogram Traps 4 | . 3 . . . . . . . 1 . . . . . . . Recall Reinforcements 1 | . . . . . . . . . . . . . . . 1 . Hauler Manifests 1 | . . . 1 . . . . . . . . . . . . . Zone Layout 8 | . 3 . 1 . . . . . 1 . . . . . 3 . Garrison Registry 3 | . . . . . . . . 1 . 1 . 1 . . . . Derelict Proto ID Bank 1 | . . . . . 1 . . . . . . . . . . . Fabricator Hacks 9 | . . . . . . . . . . . . . 7 . 2 . Load Schematic 4 | . . . . . . . . . . . . . 3 . 1 . Build 5 | . . . . . . . . . . . . . 4 . 1 . Repair Station Hacks 13 | . . . 6 . . . . . 1 . 2 . 4 . . . Scan Component 7 | . . . 3 . . . . . 1 . 1 . 2 . . . Repair 6 | . . . 3 . . . . . . . 1 . 2 . . . Recycling Unit Hacks 10 | . 2 . 2 . . . . . 1 . . . 4 . 1 . Retrieve Components 10 | . 2 . 2 . . . . . 1 . . . 4 . 1 . Scanalyzer 37 | . . . 13 . . . 4 . . . . . 16 . 4 . Insert Component 18 | . . . 6 . . . 2 . . . . . 8 . 2 . Analyze 19 | . . . 7 . . . 2 . . . . . 8 . 2 . Garrison Access Hacks 5 | . . . . . . . 1 . 1 . 1 . 2 . . . Unlock Access 5 | . . . . . . . 1 . 1 . 1 . 2 . . . Unauthorized Hacks 90 | . 8 . 17 . . . 9 1 10 1 4 1 26 1 12 . Terminals 69 | . 8 . 14 . . . 7 1 8 1 2 1 16 1 10 . Assimilate 3 | . . . 1 . . . . . . . . . 2 . . . Botnet 14 | . 2 . 2 . . . 3 . 2 . 1 . 2 . 2 . Operators 4 | . . . 1 . . . 1 . 1 . . . 1 . . . Skim 44 | . 6 . 10 . . . 3 . 5 . 1 . 11 . 8 . Override 4 | . . . . . . . . 1 . 1 . 1 . 1 . . Fabricators 6 | . . . . . . . . . . . . . 5 . 1 . Liberate 6 | . . . . . . . . . . . . . 5 . 1 . Repair Stations 2 | . . . . . . . . . 1 . 1 . . . . . Patch 2 | . . . . . . . . . 1 . 1 . . . . . Recycling Units 1 | . . . 1 . . . . . . . . . . . . . Tunnel 1 | . . . 1 . . . . . . . . . . . . . Scanalyzers 7 | . . . 2 . . . 1 . . . . . 3 . 1 . Extract 7 | . . . 2 . . . 1 . . . . . 3 . 1 . Garrison Access 5 | . . . . . . . 1 . 1 . 1 . 2 . . . Reprogram 5 | . . . . . . . 1 . 1 . 1 . 2 . . . Data Cores Recovered 1 | . . . . . . . . . . . . . . . 1 . Used 1 | . . . . . . . . . . . . . . . 1 . Hacking Detections 80 | . 7 . 12 1 . . 5 2 6 2 3 1 28 2 11 . Full Trace Events 5 | . . . 1 . . . . 1 . . . . 2 . 1 . Feedback Events 2 | . . . . . . . . . . . . . 1 . 1 . Corruption 2 | . . . . . . . . . . . . . 1 . 1 . Feedback Blocked . | . . . . . . . . . . . . . . . . . Robot Schematics Acquired 2 | . . . . . . . . . . . . . 2 . . . Robots Built 2 | . . . . . . . . . . . . . 2 . . . Authchips . | . . . . . . . . . . . . . . . . . Time 108 | . . . . . . . . . . . . . 108 . . . Total Robot Build Rating 2 | . . . . . . . . . . . . . 2 . . . Part Schematics Acquired 65 | . . . 15 . . . 9 . . . . . 28 . 13 . Parts Built 5 | . . . . . . . . . . . . . 3 . 2 . Authchips . | . . . . . . . . . . . . . . . . . Time 228 | . . . . . . . . . . . . . 175 . 53 . Total Part Build Rating 33 | . . . . . . . . . . . . . 21 . 12 . Parts Repaired 6 | . . . 3 . . . . . . . 1 . 2 . . . Time 233 | . . . 102 . . . . . . . 31 . 100 . . . Parts Recycled . | . . . . . . . . . . . . . . . . . Recycled Matter . | . . . . . . . . . . . . . . . . . Retrieved Matter . | . . . . . . . . . . . . . . . . . Retrieved Components 53 | . 6 . 11 . . . . . 1 . . . 29 . 6 . Parts Scanalyzed 18 | . . . 6 . . . 2 . . . . . 8 . 2 . Part Schematics Acquired 17 | . . . 6 . . . 2 . . . . . 8 . 1 . Parts Damaged 3 | . . . . . . . 1 . . . . . 2 . . . Bothacking | -11 -10 -10 -9 -9 -9 -8 -8 -8 -8 -8 -8 -8 -7 -7 -6 -6 ------------ Run | Yrd Mat Min Mat Min Exi Min Mat Gar Mat Gar Mat Gar Fac Gar Fac Was Used RIF Installer . | . . . . . . . . . . . . . . . . . Robots Hacked . | . . . . . . . . . . . . . . . . . Non-combat . | . . . . . . . . . . . . . . . . . Combat . | . . . . . . . . . . . . . . . . . Robot Hacks Applied . | . . . . . . . . . . . . . . . . . Relay Couplers Released 88 | . . . . . . . . 20 . 15 . 25 7 21 . . Machine Destruction 81 | . . . . . . . . 20 . 15 . 25 . 21 . . Programmers 7 | . . . . . . . . . . . . . 7 . . . Fabnet Peak Effective % . | . . . . . . . . . . . . . . . . . Robots Rewired 3 | . . . . . . . . . . 2 . . 1 . . . Allies Hacked 4 | . . . . . . . . . . . . . 2 2 . . Hacks Repelled . | . . . . . . . . . . . . . . . . . Allies | -11 -10 -10 -9 -9 -9 -8 -8 -8 -8 -8 -8 -8 -7 -7 -6 -6 -------- Run | Yrd Mat Min Mat Min Exi Min Mat Gar Mat Gar Mat Gar Fac Gar Fac Was Total Allies 34 | . . . 1 . . . 3 1 3 2 . . 17 6 . 1 Largest Group 7 | . . . 1 . . . 3 3 3 3 2 1 5 7 5 1 Highest-Rated Group 409 | . . . 10 . . . 15 31 48 64 64 39 156 409 218 31 Highest-Rated Ally 179 | . . . 10 . . . 5 31 16 39 39 39 40 179 95 31 Total Orders 16 | . . . . . . . . . 2 . . . 4 9 1 . STAY 1 | . . . . . . . . . . . . . . 1 . . FOLLOW 2 | . . . . . . . . . . . . . . 2 . . DROP 3 | . . . . . . . . . . . . . . 2 1 . PICKUP 1 | . . . . . . . . . . . . . . 1 . . COLLECT 3 | . . . . . . . . . . . . . . 3 . . EXPLORE 4 | . . . . . . . . . 1 . . . 3 . . . RETURN 2 | . . . . . . . . . 1 . . . 1 . . . Ally Attacks 304 | . . . . . . . . 18 40 73 42 4 17 29 70 11 Total Damage 6745 | . . . . . . . . 185 369 834 741 105 1265 962 2135 149 Kills 52 | . . . . . . . . 2 4 5 13 3 5 6 14 . Allies Corrupted . | . . . . . . . . . . . . . . . . . Allies Melted . | . . . . . . . . . . . . . . . . . Intel | -11 -10 -10 -9 -9 -9 -8 -8 -8 -8 -8 -8 -8 -7 -7 -6 -6 ------- Run | Yrd Mat Min Mat Min Exi Min Mat Gar Mat Gar Mat Gar Fac Gar Fac Was Robot Analysis Total 12 | . 3 . 2 . . . 1 . . . . . . . 6 . Derelict Logs Recovered . | . . . . . . . . . . . . . . . . . Drone Launches 5 | . . . . . . . . . 2 . . . 3 . . . Drone Recoveries 3 | . . . . . . . . . 2 . . . 1 . . . Exploration | -11 -10 -10 -9 -9 -9 -8 -8 -8 -8 -8 -8 -8 -7 -7 -6 -6 ------------- Run | Yrd Mat Min Mat Min Exi Min Mat Gar Mat Gar Mat Gar Fac Gar Fac Was Turns Passed 22269 | 94 672 733 2607 797 400 1133 923 2123 971 1280 1135 1379 3899 1915 2105 103 Spaces Moved 10443 | 48 327 435 1184 516 210 485 314 865 379 663 457 644 1998 928 969 21 Core 2 | 2 . . . . . . . . . . . . . . . . Treads 10441 | 46 327 435 1184 516 210 485 314 865 379 663 457 644 1998 928 969 21 Legs . | . . . . . . . . . . . . . . . . . Wheels . | . . . . . . . . . . . . . . . . . Hover . | . . . . . . . . . . . . . . . . . Flight . | . . . . . . . . . . . . . . . . . Fastest Speed 50 | 50 160 160 152 152 152 232 225 145 160 160 160 160 160 160 160 160 Average Speed 170 | 155 160 160 176 152 188 232 227 201 160 160 160 160 160 160 160 160 Slowest Speed 305 | 160 160 160 240 152 232 232 305 240 160 160 160 160 160 160 160 160 Overloaded Moves . | . . . . . . . . . . . . . . . . . Propulsion Burnouts . | . . . . . . . . . . . . . . . . . Robots Hopped . | . . . . . . . . . . . . . . . . . Cave-ins Triggered . | . . . . . . . . . . . . . . . . . Exploration Rate (%) 65 | 5 86 93 99 98 62 99 48 86 32 77 40 73 63 95 30 28 Regions Visited 16 Branch Regions 4 Pre-discovered Areas 14 | . 1 . 3 1 1 . . . . . . . 6 . 2 . Known Exits Taken 11 | 1 1 1 1 1 1 1 1 . 1 . 1 . 1 . . . Unknown Exits Taken . | . . . . . . . . . . . . . . . . . Scrap Searched . | . . . . . . . . . . . . . . . . . Spaces Dug 17 | . . . . . . . . . . 4 . 6 1 1 . 5 Terrain Destroyed 307 | . 3 . . . . 9 45 . . 6 1 10 14 4 89 126 Melee . | . . . . . . . . . . . . . . . . . Projectile 90 | . . . . . . 9 24 . . 6 1 1 14 4 26 5 AOE 216 | . 3 . . . . . 21 . . . . 9 . . 62 121 Terrain Rammed . | . . . . . . . . . . . . . . . . . Walls Destroyed . | . . . . . . . . . . . . . . . . . Machines Disabled . | . . . . . . . . . . . . . . . . . Actions | -11 -10 -10 -9 -9 -9 -8 -8 -8 -8 -8 -8 -8 -7 -7 -6 -6 --------- Run | Yrd Mat Min Mat Min Exi Min Mat Gar Mat Gar Mat Gar Fac Gar Fac Was Total 13334 | 64 440 462 1495 524 216 495 476 1058 679 765 776 861 2430 1254 1277 62 Wait 1499 | 9 84 17 142 . . 5 105 32 240 1 249 103 220 193 90 9 Move 10425 | 47 326 434 1183 515 209 484 313 861 378 662 456 643 1997 927 969 21 Hop . | . . . . . . . . . . . . . . . . . Pick Up 97 | 1 5 5 10 2 . 2 5 9 3 . 2 6 10 13 22 2 Fast Attach 55 | 7 1 . 7 . 1 . 6 5 2 1 5 1 3 6 9 1 Attach 30 | . . . 1 . . . 4 2 3 1 . 1 9 1 7 1 Detach 12 | . . . 3 . 2 . . . 2 . . . 3 . 1 1 Swap 102 | . 3 1 13 2 2 1 3 11 2 6 1 5 20 8 21 3 Drop 104 | . . . 17 2 2 3 9 9 4 2 3 2 12 18 21 . Fire 923 | . 21 5 113 2 . . 31 97 43 72 58 100 146 84 127 24 Melee 7 | . . . . . . . . 3 . 2 . . . 2 . . Ram . | . . . . . . . . . . . . . . . . . Kick . | . . . . . . . . . . . . . . . . . Crush 25 | . . . 6 1 . . . . 2 . 2 . 7 . 7 . Escape Stasis 14 | . . . . . . . . 12 . 2 . . . . . . Rewire 12 | . . . . . . . . . . 7 . . 3 1 1 . Trap 3 | . . . . . . . . . . . . . . 1 2 . Miscellaneous 26 | . . . . . . . . 17 . 9 . . . . . . Route ------- -11/Scrapyard -10/Materials (discovered 6 exits: *Mat x3 / *Min x2 / Sub) -10/Mines (discovered 2 exits: *Mat x2) -9/Materials (discovered 5 exits: *Mat x3 / *Min x2) -9/Mines (discovered 3 exits: *Mat x2 / *Exi) -9/Exiles (discovered 2 exits: *Min x2) -8/Mines (discovered 2 exits: *Mat x2) -8/Materials (discovered 2 exits: *Sto / Gar) -8/Garrison (discovered 4 exits: *Mat x4) -8/Materials (discovered 4 exits: *Fac / Sto x2 / Gar) -8/Garrison (discovered 3 exits: *Mat x3) -8/Materials (discovered 4 exits: *Fac / *Sto x2 / Gar) -8/Garrison (discovered 3 exits: *Fac x3) -7/Factory (discovered 8 exits: *Fac x4 / *Low x2 / Gar / Gar) -7/Garrison (discovered 3 exits: *Fac x3) -6/Factory (discovered 8 exits: *Fac x4 / *Low x2 / *Ext x2) -6/Waste History --------- Turn | Location | Event 32 | -11/Scrapyard | Identified exit to Materials 32 | -11/Scrapyard | Discovered exit to Materials (range 16) 95 | -11/Scrapyard | Entered Materials 95 | -10/Materials | Evolved 1 slot: Utility x1 306 | -10/Materials | Identified exit to Mines 306 | -10/Materials | Discovered exit to Mines (range 13) 318 | -10/Materials | Build established: Hacker-Mutant 452 | -10/Materials | Identified exit to Materials 452 | -10/Materials | Discovered exit to Materials (range 5) 567 | -10/Materials | Learned location of 1 exit from Storage 583 | -10/Materials | Discovered exit to Materials (range 8) 613 | -10/Materials | Loaded intel: 20 non-interactive machine locations 643 | -10/Materials | Discovered exit to Mines (range 5) 651 | -10/Materials | Loaded intel: 26 trap records 678 | -10/Materials | Learned Storage trap positions 695 | -10/Materials | Learned Storage stockpile data 704 | -10/Materials | Learned location of Subcaves (-10) 705 | -10/Materials | Identified exit to Subcaves 734 | -10/Materials | Learned Materials trap positions 767 | -10/Materials | Entered Mines 1221 | -10/Mines | Discovered exit to Materials (range 8) 1428 | -10/Mines | Found a hidden stash of uninstalled traps 1457 | -10/Mines | Discovered exit to Materials (range 11) 1500 | -10/Mines | Entered Materials 1500 | -9/Materials | Evolved 2 slots: Utility x2 1501 | -9/Materials | Identified exit to Mines 1502 | -9/Materials | Loaded intel: 8 trap records 1848 | -9/Materials | Identified exit to Materials 1848 | -9/Materials | Discovered exit to Materials (range 15) 2135 | -9/Materials | Build established: Scavenger-Mutant 2324 | -9/Materials | Learned 2 Storage zone layouts 2406 | -9/Materials | Learned location of Zion (-6) 2463 | -9/Materials | Discovered exit to Materials (range 15) 2478 | -9/Materials | Learned 2 Storage zone layouts 2538 | -9/Materials | Learned location of Mines (-9) 2610 | -9/Materials | Build established: Hacker-Mutant 2622 | -9/Materials | Learned Storage stockpile data 2729 | -9/Materials | Loaded intel: 2 recycling unit locations 2785 | -9/Materials | Learned 2 Storage zone layouts 2915 | -9/Materials | Repaired Adv. Treads 2947 | -9/Materials | Repaired Med. Armor Plating 2979 | -9/Materials | Repaired Imp. Ion Engine 3392 | -9/Materials | Discovered exit to Materials (range 6) 4107 | -9/Materials | Entered Mines 4110 | -9/Mines | Discovered exit to Materials (range 10) 4114 | -9/Mines | Received a Rocket Launcher from a helpful Derelict 4534 | -9/Mines | Learned location of Storage (-8) 4673 | -9/Mines | Discovered exit to Materials (range 13) 4692 | -9/Mines | Met a Derelict shopkeep closing up shop 4737 | -9/Mines | Deemed a non-threat by the Exiles lab entrance 4737 | -9/Mines | Identified exit to Exiles 4737 | -9/Mines | Discovered exit to Exiles (range 6) 4904 | -9/Mines | Entered Exiles 4929 | -9/Exiles | Identified exit to Mines 4929 | -9/Exiles | Discovered exit to Mines (range 17) 4942 | -9/Exiles | Met 8R-AWN 4967 | -9/Exiles | Met EX-HEX 5012 | -9/Exiles | Met EX-BIN 5031 | -9/Exiles | Aligned with FarCom system 5032 | -9/Exiles | Given EX-Vault access code 5069 | -9/Exiles | Opened EX-Vault 5084 | -9/Exiles | Found AWS/Gauss 5135 | -9/Exiles | Warned to stay clear of 0b10 Research branches 5195 | -9/Exiles | Met EX-DEC 5283 | -9/Exiles | Discovered exit to Mines (range 10) 5304 | -9/Exiles | Left Exiles lab with AWS/Gauss 5304 | -9/Exiles | Entered Mines 5540 | -8/Mines | Discovered exit to Materials (range 3) 5599 | -8/Mines | Build established: Hacker-Skirmisher 6367 | -8/Mines | Discovered exit to Materials (range 8) 6437 | -8/Mines | Entered Materials 6437 | -8/Materials | Evolved 2 slots: Utility x2 6438 | -8/Materials | Identified exit to Storage 6922 | -8/Materials | AWS/Gauss suddenly broke down 7257 | -8/Materials | Garrison activated, responded to threat 7297 | -8/Materials | Identified exit to Garrison 7360 | -8/Materials | Entered Garrison 7360 | -8/Garrison | Accompanied by 3 allies 7412 | -8/Garrison | Triggered checkpoint 7569 | -8/Garrison | Garrison Relay disabled 7665 | -8/Garrison | Triggered checkpoint 7785 | -8/Garrison | Identified exit to Materials 7785 | -8/Garrison | Discovered exit to Materials (range 41) 7785 | -8/Garrison | Discovered exit to Materials (range 27) 7785 | -8/Garrison | Discovered exit to Materials (range 73) 7785 | -8/Garrison | Discovered exit to Materials (range 25) 7792 | -8/Garrison | Triggered checkpoint 7821 | -8/Garrison | Garrison Relay disabled 8079 | -8/Garrison | Build established: Hacker-Mutant 8185 | -8/Garrison | Phase Generator disabled 8292 | -8/Garrison | Rescued a captive Derelict 8386 | -8/Garrison | Triggered checkpoint 8478 | -8/Garrison | Garrison Relay disabled 8504 | -8/Garrison | Triggered checkpoint 8672 | -8/Garrison | Triggered checkpoint 8718 | -8/Garrison | Triggered checkpoint 8777 | -8/Garrison | Garrison Relay disabled 8786 | -8/Garrison | Garrison Relay disabled 8810 | -8/Garrison | Triggered checkpoint 9328 | -8/Garrison | Attempted to access garrison exit controls, blocked by remote lockdown 9483 | -8/Garrison | Entered Materials 9698 | -8/Materials | Identified exit to Garrison 9862 | -8/Materials | Identified exit to Factory 9862 | -8/Materials | Discovered exit to Factory (range 3) 9944 | -8/Materials | Build established: Hacker-Skirmisher 10029 | -8/Materials | Garrison activated, responded to threat 10149 | -8/Materials | Learned location of 2 exits from Lower Caves 10221 | -8/Materials | Learned 4 Factory zone layouts 10388 | -8/Materials | Learned Factory trap positions 10398 | -8/Materials | Garrison activated, responded to threat 10454 | -8/Materials | Entered Garrison 10454 | -8/Garrison | Accompanied by 3 allies 10500 | -8/Garrison | Triggered checkpoint 10523 | -8/Garrison | Garrison Relay disabled 10622 | -8/Garrison | Triggered checkpoint 10628 | -8/Garrison | Triggered checkpoint 10638 | -8/Garrison | Triggered checkpoint 10717 | -8/Garrison | Identified exit to Materials 10717 | -8/Garrison | Discovered exit to Materials (range 16) 10764 | -8/Garrison | Build established: Hacker-Mutant 10830 | -8/Garrison | Discovered exit to Materials (range 10) 10914 | -8/Garrison | Triggered checkpoint 11019 | -8/Garrison | Discovered exit to Materials (range 16) 11098 | -8/Garrison | Triggered checkpoint 11125 | -8/Garrison | Garrison Relay disabled 11242 | -8/Garrison | Triggered checkpoint 11287 | -8/Garrison | Garrison Relay disabled 11512 | -8/Garrison | Triggered checkpoint 11538 | -8/Garrison | Discovered exit to Materials (range 68) 11538 | -8/Garrison | Discovered exit to Materials (range 25) 11538 | -8/Garrison | Discovered exit to Materials (range 41) 11538 | -8/Garrison | Garrison Relay disabled 11636 | -8/Garrison | Phase Generator disabled 11673 | -8/Garrison | Core integrity fell below 50% 11734 | -8/Garrison | Entered Materials 11734 | -8/Materials | Accompanied by 2 allies 11802 | -8/Materials | Discovered exit to Storage (range 17) 11987 | -8/Materials | Build established: Hacker-Skirmisher 12071 | -8/Materials | Discovered exit to Factory (range 5) 12186 | -8/Materials | Discovered exit to Storage (range 18) 12287 | -8/Materials | Garrison activated, responded to threat 12375 | -8/Materials | Repaired Imp. Heavy Treads 12446 | -8/Materials | Garrison activated, responded to threat 12485 | -8/Materials | Identified exit to Garrison 12683 | -8/Materials | Build established: Hacker-Mutant 12869 | -8/Materials | Entered Garrison 12869 | -8/Garrison | Accompanied by 1 ally 12943 | -8/Garrison | Triggered checkpoint 13093 | -8/Garrison | Triggered checkpoint 13164 | -8/Garrison | Discovered exit to Factory (range 12) 13239 | -8/Garrison | Triggered checkpoint 13328 | -8/Garrison | Garrison Relay disabled 13400 | -8/Garrison | Triggered checkpoint 13403 | -8/Garrison | Triggered checkpoint 13470 | -8/Garrison | Destroyed 9 combat bots 13481 | -8/Garrison | Discovered exit to Factory (range 38) 13481 | -8/Garrison | Discovered exit to Factory (range 26) 13481 | -8/Garrison | Discovered exit to Factory (range 37) 13819 | -8/Garrison | Garrison Relay disabled 13928 | -8/Garrison | Garrison Relay disabled 13952 | -8/Garrison | Garrison Relay disabled 13954 | -8/Garrison | Garrison Relay disabled 14063 | -8/Garrison | Spotted B-75 Beast 14112 | -8/Garrison | Destroyed B-75 Beast 14248 | -8/Garrison | Entered Factory 14248 | -7/Factory | Evolved 2 slots: Propulsion x2 14249 | -7/Factory | Identified exit to Lower Caves 14250 | -7/Factory | Identified exit to Factory 14251 | -7/Factory | Loaded intel: 88 trap records 14374 | -7/Factory | Repaired Imp. Heavy Treads 14479 | -7/Factory | Repaired Hardlight Generator 14554 | -7/Factory | Build established: Hacker-Skirmisher 14738 | -7/Factory | Discovered exit to Factory (range 19) 15306 | -7/Factory | Fabricated Imp. Heavy Treads? 15538 | -7/Factory | P-60 Hacker assimilated hostile G-47 Trooper 15587 | -7/Factory | Lost 5 allies 15630 | -7/Factory | Build established: Hacker-Mutant 15634 | -7/Factory | Discovered exit to Lower Caves (range 12) 15865 | -7/Factory | Fabricated Adv. Transmission Jammer (x2) 16554 | -7/Factory | Build established: Hacker-Skirmisher 16630 | -7/Factory | Discovered exit to Factory (range 17) 16982 | -7/Factory | Learned location of 1 exit from Hub_04(d) 17016 | -7/Factory | Learned location of Warlord (-4) 17041 | -7/Factory | Loaded intel: 4 scanalyzer locations 17054 | -7/Factory | Learned location of Upper Caves (-4) 17055 | -7/Factory | Learned location of 2 exits from Archives 17056 | -7/Factory | Learned location of 1 exit from Upper Caves 17057 | -7/Factory | Learned 2 Upper Caves zone layouts 17064 | -7/Factory | Learned location of 1 exit from Cetus 17080 | -7/Factory | Learned Hub_04(d) trap positions 17232 | -7/Factory | Garrison activated, responded to threat 17234 | -7/Factory | Fabricated A-02 Transporter (x1) 17483 | -7/Factory | Identified exit to Garrison 17534 | -7/Factory | Build established: Scavenger-Mutant 17557 | -7/Factory | Garrison activated, responded to threat 17759 | -7/Factory | Learned Hub_04(d) terminal intel 17794 | -7/Factory | Learned location of Proximity Caves (-6) 17820 | -7/Factory | Learned location of Proximity Caves (-4) 17873 | -7/Factory | Learned location of 1 exit from Extension 17962 | -7/Factory | Fabricated A-02 Transporter? 18049 | -7/Factory | Identified exit to Garrison 18080 | -7/Factory | Garrison activated, responded to threat 18147 | -7/Factory | Entered Garrison 18147 | -7/Garrison | Accompanied by 3 allies 18164 | -7/Garrison | Build established: Hacker-Mutant 18176 | -7/Garrison | Triggered checkpoint 18203 | -7/Garrison | Garrison Relay disabled 18612 | -7/Garrison | Triggered checkpoint 18613 | -7/Garrison | Triggered checkpoint 18647 | -7/Garrison | Triggered checkpoint 18659 | -7/Garrison | Triggered checkpoint 18755 | -7/Garrison | Rescued AZ-K3N 18842 | -7/Garrison | Garrison Relay disabled 18963 | -7/Garrison | AZ-K3N assimilated hostile S-27 Virus 19050 | -7/Garrison | Garrison Relay disabled 19097 | -7/Garrison | Triggered checkpoint 19119 | -7/Garrison | Garrison Relay disabled 19143 | -7/Garrison | Found embedded Infiltrators 19308 | -7/Garrison | Triggered checkpoint 19348 | -7/Garrison | Garrison Relay disabled 20062 | -7/Garrison | Entered Factory 20062 | -6/Factory | Accompanied by 5 allies 20062 | -6/Factory | Evolved 2 slots: Power x1, Utility x1 20412 | -6/Factory | First assault squad dispatched 20461 | -6/Factory | Identified exit to Lower Caves 20461 | -6/Factory | Discovered exit to Lower Caves (range 9) 20567 | -6/Factory | P-60 Hacker assimilated allied Transporter 4b 20592 | -6/Factory | Destroyed 11 combat bots 20833 | -6/Factory | Fabricated Lrn. Tractor Beam (x2) 21216 | -6/Factory | Identified exit to Factory 21216 | -6/Factory | Discovered exit to Factory (range 5) 21365 | -6/Factory | Destroyed 8 combat bots 21501 | -6/Factory | Identified exit to Extension 21501 | -6/Factory | Discovered exit to Extension (range 6) 21553 | -6/Factory | Learned Extension trap positions 21555 | -6/Factory | Cargo convoy interrupted 21621 | -6/Factory | Learned location of Upper Caves (-4) 21679 | -6/Factory | Learned 2 Proximity Caves zone layouts 21767 | -6/Factory | Learned Extension garrison access intel 21849 | -6/Factory | Learned location of 1 exit from Upper Caves 21942 | -6/Factory | Learned location of 2 exits from Archives 22167 | -6/Factory | Sucked down chute 22167 | -6/Factory | Entered Waste 22167 | -6/Waste | Spotted C-40 Crusher 22168 | -6/Waste | Met a frightened Derelict 22186 | -6/Waste | Destroyed C-40 Crusher 22230 | -6/Waste | Spotted C-40 Crusher 22235 | -6/Waste | Spotted C-40 Crusher 22238 | -6/Waste | Spotted C-40 Crusher 22243 | -6/Waste | Destroyed C-40 Crusher 22256 | -6/Waste | Destroyed C-40 Crusher 22260 | -6/Waste | Crushed by Compactor (1 part destroyed, 1 dropped) 22263 | -6/Waste | Crushed by Compactor (0 parts destroyed, 1 dropped) 22266 | -6/Waste | Crushed by Compactor (1 part destroyed, 1 dropped) 22269 | -6/Waste | Crushed by Compactor (0 parts destroyed, 1 dropped) 22270 | -6/Waste | Self-destructed Last Messages --------------- 22250_ The unstable cave ceiling collapses. 22252_ Acquired 12 matter. 22256_ The unstable cave ceiling collapses. 22256_ C-40 Crusher destroyed. 22257_ Acquired 12 matter. 22257_ The unstable cave ceiling collapses. 22259_ Acquired 12 matter. 22260_ The unstable cave ceiling collapses. 22260_ Micro-nuke Launcher crushed. 22260_ Lrn. Tractor Beam crushed. 22260_ Matter Filter destroyed. 22262_ The unstable cave ceiling collapses. 22263_ Hvy. Phase Cannon crushed. 22265_ The unstable cave ceiling collapses. 22266_ Rnf. Deuterium Engine crushed. 22266_ Hcp. Storage Unit crushed. 22266_ Acquired Hvy. Phase Cannon. 22269_ Active Sensor Spoofer crushed. 22269_ Coil Gun crushed. 22269_ Hvy. Phase Cannon crushed. Map ----- +----------------------------------------------------+ | ?????????????????????????????????????????????????? | | ?????????????????????????????????????????????????? | | ?????????????????????????????????????????????????? | | ?????????????????????????????????????????????????? | | ?????????????????????????? ???????????????????? | | ?????????????????????????# #??????????????????? | | ????????????????????????? ??????????????????? | | ????????????????????????? ??????????????????? | | ????????????????????????? ??????????????????? | | ????????????????????????? ??????????????????? | | ?????????????????????????# #######? ? #??????? | | ?????????????????????????# ## #??????? | | ?????????????????????????# # # ???????? | | ???????????????????????### #??????? | | ??????????????????????## # #??????? | | ??????????????????????# %= ?????? | | ??????????????????????? * ?????? | | ??????????????????????? ?????? | | ??????????????????????? ?????? | | ??????????????????????## # #??????? | | ???????????############ ## % #??????? | | ???????????# # ?????????? | | ???????????# #??? #??????? | | ???????????# ! # ## #??????? | | ???????????# [!!! #??????? | | ???????????# !!@!| #??????? | | ???????????# !%!CC #??????? | | ???????????# !!CC #??????? | | ???????????# # # ## #??????? | | ???????????# # # ##?????#??????? | | ???????????# # # ##?????????????? | | ???????????############# ; #????????????????? | | ???????????????????????### ##????????????????? | | ?????????????????????????#######?????????????????? | | ?????????????????????????????????????????????????? | | ?????????????????????????????????????????????????? | | ?????????????????????????????????????????????????? | | ?????????????????????????????????????????????????? | | ?????????????????????????????????????????????????? | | ?????????????????????????????????????????????????? | | ?????????????????????????????????????????????????? | | ?????????????????????????????????????????????????? | | ?????????????????????????????????????????????????? | | ?????????????????????????????????????????????????? | | ?????????????????????????????????????????????????? | | ?????????????????????????????????????????????????? | | ?????????????????????????????????????????????????? | | ?????????????????????????????????????????????????? | | ?????????????????????????????????????????????????? | | ?????????????????????????????????????????????????? | +----------------------------------------------------+ Best States ------------- Heat Dissipation 68 Coolant Potential 80 Energy Generation 41 Energy Capacity 500 Matter Stores 300 Matter Capacity 300 Sight Range 22 Terrain Scan Density 10 Jamming Range 16 Corruption Block 15 Armor Coverage 450 Resistance: KI 65 Resistance: TH 55 Resistance: EX 35 Resistance: EM 35 Resistance: I 35 Resistance: S 35 Resistance: P 35 Weapon Cycling 15 Evasion (%) 40 Targeting Accuracy 5 Target Analysis 5 Recoil Reduction 4 Matter Filtering 30 Salvage Targeting 1 Offensive Hacking 30 Defensive Hacking 12 Item Schematics ----------------- Hvy. Assault Rifle | -9/Materials | Scanalyzed Rocket Launcher | -9/Materials | Scanalyzed Disposable Heat Sink | -9/Materials | Scanalyzed Katana | -9/Materials | Scanalyzed Med. Storage Unit | -9/Materials | Scanalyzed Huge Storage Unit | -9/Materials | Extracted Hacking Suite | -9/Materials | Scanalyzed Arm. Wheel | -9/Materials | Extracted Sml. Storage Unit | -9/Materials | Extracted Terrain Scan Processor | -9/Materials | Extracted Imp. EM Shotgun | -9/Materials | Extracted Particle Gun | -9/Materials | Extracted Particle Cannon | -9/Materials | Extracted Shotgun | -9/Materials | Extracted Imp. Targeting Computer | -9/Materials | Extracted Med. Armor Plating | -8/Materials | Scanalyzed Hvy. Deuterium Engine | -8/Materials | Scanalyzed Autogun | -8/Materials | Extracted Imp. Sensor Array | -8/Materials | Extracted Weapon Shielding | -8/Materials | Extracted EM Pulse Cannon | -8/Materials | Extracted EM Shotgun | -8/Materials | Extracted Hrd. Medium Armor Plating | -8/Materials | Extracted System Shield | -8/Materials | Extracted Imp. Heavy Treads | -7/Factory | Scanalyzed Adv. System Restoration Module | -7/Factory | Scanalyzed Arc Projector | -7/Factory | Extracted Hcp. Storage Unit | -7/Factory | Extracted Component Analysis Suite | -7/Factory | Extracted Imp. Trap Extractor | -7/Factory | Extracted Gauss Rifle | -7/Factory | Extracted Weapon Cycler | -7/Factory | Extracted Med. Treads | -7/Factory | Extracted Shock Rifle | -7/Factory | Extracted Shock Absorption System | -7/Factory | Extracted Chainsword | -7/Factory | Extracted Imp. Titanium Leg | -7/Factory | Extracted Lrn. Tractor Beam | -7/Factory | Scanalyzed Adv. Transmission Jammer | -7/Factory | Scanalyzed Imp. Terrain Scanner | -7/Factory | Extracted Xenon Bombardment Thruster | -7/Factory | Extracted Corruption Screen | -7/Factory | Extracted Com. Battery | -7/Factory | Extracted Enh. Gauss Cannon | -7/Factory | Scanalyzed Hardlight Generator | -7/Factory | Scanalyzed Adv. Shield Generator | -7/Factory | Scanalyzed Imp. Plasma Cutter | -7/Factory | Scanalyzed Insulated Plating | -7/Factory | Extracted System Restoration Module | -7/Factory | Extracted Imp. Deuterium Engine | -7/Factory | Extracted Med. Reactive Plating | -7/Factory | Hacked EM Disruption Field | -7/Factory | Hacked Adv. Cooling System | -6/Factory | Scanalyzed Adv. Sensor Array | -6/Factory | Extracted Dynamic Insulation System | -6/Factory | Extracted Imp. Particle Charger | -6/Factory | Extracted Transmission Jammer | -6/Factory | Extracted Imp. Cryofiber Web | -6/Factory | Extracted Reaction Control System | -6/Factory | Extracted Wheel | -6/Factory | Extracted Cld. Particle Cannon | -6/Factory | Extracted VSS Leg | -6/Factory | Extracted Stasis Canceller | -6/Factory | Extracted Imp. Hardlight Generator | -6/Factory | Hacked Imp. Weapon Cycler | -6/Factory | Hacked Robot Schematics ------------------ A-02 Transporter | -7/Factory | Hacked H-55 Commando | -7/Factory | Hacked Fabricated ------------ Imp. Heavy Treads | x1 | -7/Factory Adv. Transmission Jammer | x2 | -7/Factory | Preloaded A-02 Transporter | x1 | -7/Factory A-02 Transporter | x1 | -7/Factory Lrn. Tractor Beam | x2 | -6/Factory Alien Tech Used ----------------- None Achievements -------------- None Challenges ------------ None Game ------ Seed NuclearSchematicFalx Manual? 0 Play Time 03:06:53 Cumulative 506.6 hours Start 2024.10.04 @ 14:48:55 End 2024.10.06 @ 18:03:28 Sessions 9 Manual Loads 0 Difficulty Explorer Special Mode None Game No. 67 Rogue 6 Adventurer 6 Explorer 55 Win Type - Total 35 Types 13/7/2/5/1/1/1/3/2 Lore% 84 Gallery% 85 Achievement% 90 Wizard Run 0 Options --------- Layout 1 ASCII 0 Keyboard 0 Movement Mouse Keybinds 0 Fullscreen 1 Font 24/Smallcaps Map View 50x35 Zoom Use 0% Tactical HUD 1 Map Filters NONE Filters NONE Steam 1 RUN: b0bd33a1-9448-4de0-9036-7098920aa7fb